fUSD/lending_fUSD_20240904
["ID","MTS","AMOUNT","RATE_DAILY","PERIOD"]
[337160386,1725463832799,-163.25656161,0.0001378,2]
[337160387,1725463832808,-358.22739098,0.0001378,2]
[337160388,1725463832818,-330.01062212,0.0001378,2]
[337160389,1725463832827,-154.45046497,0.00013788,2]
[337160390,1725463832837,-8173.89340442,0.00013816,2]
[337160392,1725463832847,-155.94268703,0.00013825,2]
[337160394,1725463832856,-150.0,0.00013859,2]
[337160395,1725463832866,-155.94268703,0.00013869,2]
[337160396,1725463832875,-182.91,0.0001387,2]
[337160397,1725463832885,-5000.0,0.0001387,6]
[337160398,1725463832895,-5000.0,0.0001387,8]
[337160399,1725463832913,-5000.0,0.0001387,9]
[337160400,1725463832923,-171.99506476,0.00013876,2]
[337160401,1725463832932,-5032.7865584,0.00013877,2]
[337160402,1725463832941,-15519.0324252,0.00013877,2]
[337160403,1725463832951,-2163.1544784,0.00013877,2]
[337160404,1725463832960,-47595.84937981,0.00013877,2]
[337160405,1725463832972,-1096.96109307,0.00013877,2]
[337160406,1725463833060,-1119.37252312,0.00013877,2]
[337160407,1725463833077,-940.47405097,0.00013877,2]
[337160408,1725463833090,-1233.31001081,0.00013877,2]
[337160409,1725463833119,-1451.24090158,0.00013877,2]
[337160410,1725463833533,-518.21343265,0.00013877,2]
[337160413,1725463838534,-683.52597038,0.00013877,2]
[337160414,1725463838546,-11534.91743194,0.00013877,2]
[337160415,1725463838557,-2589.73187169,0.00013877,2]
[337160416,1725463838580,-3906.44133398,0.00013877,2]
[337160417,1725463838590,-187.65688007,0.00013877,2]
[337160418,1725463838599,-195.62232328,0.00013879,2]
[337160419,1725463838608,-1472.95390967,0.00013879,2]
[337160420,1725463838627,-255.53745705,0.00013879,2]
[337160421,1725463838675,-269.11655812,0.00013879,2]
[337160422,1725463838685,-1189.28344188,0.0001388,2]
[337160423,1725463838726,-1500.0,0.0001388,2]
[337160424,1725463838880,-49454.82860711,0.0001388,2]
[337164620,1725464009570,2000.0,0.00025671,120]
[337164621,1725464034894,500.0,0.0002571,120]
[337164622,1725464046045,243.14,0.00011089,2]
[337164623,1725464057405,200.0,0.00025219,120]
[337164625,1725464177531,1295.0,0.00027,120]
[337164626,1725464259243,155.0,0.00025,60]
[337164627,1725464296997,2554.6015,0.00012948,2]
[337164628,1725464424915,250.0,0.00012998,2]
[337164629,1725464562309,164.7,0.00012973,2]
[337164630,1725464616069,230.98,0.00011036,2]
[337164631,1725464674350,250.0,0.00012961,2]
[337164632,1725464709281,291.4149658,0.00012477,2]
[337164633,1725464711028,193.70030262,0.00012477,2]
[337164634,1725464717866,150.00000001,0.00012477,2]
[337164635,1725464746755,369.88,0.0001292,2]
[337164636,1725464870450,3218.3,0.00027,120]
[337164637,1725464938411,250.0,0.00012886,2]
[337164638,1725464963791,2000.0,0.00027,120]
[337164639,1725464983096,-297.98,0.00013007,2]
[337164640,1725464983291,-2033.0,0.00013021,2]
[337164641,1725464983321,-222.84,0.00013022,2]
[337164642,1725464983350,-300.0,0.00013032,2]
[337164643,1725464983380,-3247.57836676,0.00013033,2]
[337164644,1725464983421,-6101.39836676,0.00013033,2]
[337164645,1725464983472,-4071.54051735,0.00013033,2]
[337164657,1725465031433,-1282.41274913,0.00013033,2]
[337164658,1725465031443,-630.12,0.00013048,2]
[337164659,1725465031453,-230.98,0.000133,2]
[337164660,1725465031463,-225.0,0.00013491,2]
[337164662,1725465031473,-1088.969665,0.00013602,2]
[337164663,1725465031487,-1017.62921835,0.00013602,2]
[337164664,1725465031498,-421.15547501,0.00013615,2]
[337164665,1725465031508,-300.0,0.00013697,2]
[337164666,1725465031518,-499.99,0.00013698,2]
[337164667,1725465031527,-518.2,0.00013698,2]
[337164668,1725465031543,-150.0,0.00013698,2]
[337164669,1725465031552,-169.79,0.00013699,2]
[337164670,1725465031566,-500.0,0.00013699,2]
[337164671,1725465031577,-200.0,0.00013699,2]
[337164672,1725465031587,-2751.0,0.00013699,2]
[337164673,1725465031597,-500.0,0.00013699,2]
[337164674,1725465031606,-162.66,0.00013699,2]
[337164675,1725465031616,-3193.31,0.00013699,2]
[337164676,1725465031626,-1849.91411,0.0001374,2]
[337164677,1725465031635,-500.0,0.00013769,2]
[337164678,1725465031646,-200.0,0.00013769,2]
[337164679,1725465031656,-7260.5006,0.0001378,2]
[337164680,1725465031666,-155.94268703,0.0001378,2]
[337164681,1725465031676,-238.81826066,0.0001378,2]
[337164682,1725465031685,-200.69,0.0001387,2]
[337164683,1725465031695,-1194.04088155,0.00013879,5]
[337164684,1725465031706,-370.54405097,0.00013879,5]
[337164685,1725465031715,-330.15006432,0.00013879,2]
[337164687,1725465031724,-185433.12891543,0.0001388,2]
[337164694,1725465031789,-2854.6015,0.0001388,2]
[337164768,1725465037619,-354.61918759,0.00013657,2]
[337164769,1725465037796,-57.76221502,0.00013657,2]
[337164770,1725465037805,-728.02479172,0.00013877,2]
[337164771,1725465037849,-91.42068698,0.00013877,2]
[337164772,1725465037858,-61908.57931302,0.0001388,2]
[337164773,1725465038019,-5162.99999999,0.0001388,2]
[337164774,1725465038031,-64748.71340057,0.0001388,2]
[337164775,1725465038134,-1319.42152515,0.0001388,2]
[337164777,1725465038149,-1160.84706,0.0001388,2]
[337164861,1725465039642,-300.0,0.0001388,2]
[337164862,1725465039703,-766.32952546,0.0001388,2]
[337164863,1725465039714,-708.44590795,0.0001388,2]
[337164864,1725465039725,-287.99576388,0.0001388,2]
[337164865,1725465039771,-1789.08360229,0.0001388,2]
[337164878,1725465043009,-316471.01887516,0.0001388,2]
[337164879,1725465043020,-203404.9811251,0.0001388,2]
[337164880,1725465043032,-764.10999999,0.0001388,2]
[337164881,1725465043051,-4206.7612372,0.0001388,2]
[337164882,1725465043063,-942.316296,0.0001388,2]
[337164883,1725465043200,-1338.93553976,0.0001388,2]
[337164884,1725465043212,-18386.04645497,0.0001388,2]
[337164885,1725465043224,-14521.78405893,0.0001388,2]
[337164886,1725465043235,-562.6023957,0.0001388,2]
[337164887,1725465043259,-546.8025467,0.0001388,2]
[337164888,1725465043270,-730.07140233,0.0001388,2]
[337164889,1725465043282,-652.62529538,0.0001388,2]
[337164890,1725465043299,-20464.29,0.0001388,2]
[337164900,1725465045594,-26877.33789916,0.0001388,2]
[337164901,1725465045654,-1874.06416438,0.0001388,2]
[337164902,1725465045714,-812.74759037,0.0001388,2]
[337164903,1725465045725,-635.39287192,0.0001388,2]
[337164904,1725465045736,-5784.84070337,0.0001388,2]
[337164905,1725465045747,-12213.40479688,0.0001388,2]
[337164913,1725465046675,-743.3523116,0.0001388,2]
[337164914,1725465046686,-1487.12472201,0.0001388,2]
[337164915,1725465046696,-2890.38839463,0.0001388,2]
[337164916,1725465046712,-3929.113636,0.0001388,2]
[337164917,1725465046724,-3145.66036694,0.0001388,2]
[337164918,1725465046735,-7730.50481181,0.0001388,2]
[337164919,1725465046746,-2596.70460724,0.0001388,2]
[337164920,1725465046769,-1363.63147778,0.0001388,2]
[337164921,1725465046780,-734.01641473,0.0001388,2]
[337164922,1725465046793,-943.31862009,0.0001388,2]
[337164923,1725465096769,5640.2946,0.00012907,2]
[337164934,1725465304184,200.0,0.00027,120]
[337164935,1725465335879,300.0,0.00027,120]
[337164936,1725465364308,248.0,0.00025,60]
[337164937,1725465400063,150.0,0.00025,60]
[337164938,1725465436671,300.0,0.00027,120]
[337164939,1725465483225,550.0,0.00011,2]
[337164940,1725465484744,600.0,0.00013,2]
[337164941,1725465487160,239.89,0.00011142,2]
[337164944,1725465495508,2000.0,0.00025,60]
[337164945,1725465496706,625.90099195,0.00012993,2]
[337164946,1725465534323,272.4,0.00010959,2]
[337164947,1725465574487,1185067.50381745,0.0001288,2]
[337164948,1725465574517,1779174.25431664,0.0001288,2]
[337164949,1725465574542,2000000.0,0.0001288,2]
[337164950,1725465574646,-224.52242222,0.0001288,2]
[337164951,1725465575134,-184.12540866,0.0001288,2]
[337164952,1725465576969,-169.79,0.0001288,2]
[337164953,1725465580981,-169.36574292,0.0001288,2]
[337164954,1725465581403,-150.0,0.0001288,2]
[337164955,1725465581795,-150.0,0.0001288,2]
[337164956,1725465583186,-150.0,0.0001288,2]
[337164957,1725465584396,-150.0,0.0001288,2]
[337164958,1725465585081,-150.0,0.0001288,2]
[337164959,1725465586464,-150.0,0.0001288,2]
[337164960,1725465587121,-150.0,0.0001288,2]
[337164961,1725465587552,-150.0,0.0001288,2]
[337164962,1725465587938,-150.0,0.0001288,2]
[337164963,1725465588580,-150.0,0.0001288,2]
[337164964,1725465591110,-150.0,0.0001288,2]
[337164965,1725465591652,-150.0,0.0001288,2]
[337164966,1725465592218,-150.0,0.0001288,2]
[337164967,1725465592553,-150.0,0.0001288,2]
[337164968,1725465593096,-150.0,0.0001288,2]
[337164969,1725465595030,-150.0,0.0001288,2]
[337164970,1725465595540,-150.0,0.0001288,2]
[337164971,1725465596060,-150.0,0.0001288,2]
[337164972,1725465596467,-150.0,0.0001288,2]
[337164973,1725465596843,-150.0,0.0001288,2]
[337164974,1725465598265,-150.0,0.0001288,2]
[337164975,1725465599134,-150.0,0.0001288,2]
[337164976,1725465600519,-150.0,0.0001288,2]
[337164977,1725465602352,-150.0,0.00012879,2]
[337164978,1725465603072,-150.0,0.0001288,2]
[337164979,1725465603711,-150.0,0.00012879,2]
[337164980,1725465604403,-150.0,0.00012874,2]
[337164981,1725465604946,-150.0,0.00012874,2]
[337164982,1725465605558,-150.0,0.00012874,2]
[337164983,1725465605998,-150.0,0.00012874,2]
[337164984,1725465606734,-150.0,0.00012874,2]
[337164985,1725465607323,-150.0,0.00012874,2]
[337164986,1725465610496,161.20946855,0.000123,2]
[337164987,1725465610517,161.20946855,0.000123,2]
[337164988,1725465610538,161.20946855,0.000123,2]
[337164989,1725465610560,150.0,0.000123,2]
[337164990,1725465610585,116.37159435,0.000123,2]
[337164991,1725465878907,-100.0,0.00012874,2]
[337164992,1725465878931,-300.0,0.00012878,2]
[337164993,1725465878953,-500.0,0.00012879,2]
[337164994,1725465878976,-500.0,0.00012879,2]
[337164995,1725465878998,-500.0,0.00012879,2]
[337164996,1725465879021,-232.63,0.00012879,2]
[337164997,1725465888365,-150.0,0.00012879,2]
[337164998,1725465890687,-117.37,0.00012879,2]
[337164999,1725465890712,-32.63,0.00012879,2]
[337165000,1725465909351,150.0,0.00012403,2]
[337165001,1725465909372,77.82557227,0.00012403,2]
[337165002,1725465968114,150.0,0.00010844,2]
[337165003,1725465968135,124.02,0.00010844,2]
[337165005,1725466073588,173.19,0.00010959,2]
[337165006,1725466132001,-250.0,0.00012762,2]
[337165007,1725466132029,-2500.0,0.0001278,2]
[337165008,1725466132062,-3573.84332209,0.00012782,2]
[337165009,1725466132103,-3111.45421186,0.00012782,2]
[337165010,1725466132132,-200.0,0.00012865,2]
[337165011,1725466132161,-467.37,0.00012879,2]
[337165012,1725466132189,-369.69058901,0.00012879,2]
[337165013,1725466132216,-500.0,0.00012879,2]
[337165014,1725466132246,-138.92644324,0.00012879,2]
[337165015,1725466156966,-178.28,0.0001282,2]
[337165016,1725466156991,-49.82383586,0.00012879,2]
[337165017,1725466157019,-243.19447545,0.00012879,2]
[337165018,1725466157047,-150.0,0.00012879,2]
[337165019,1725466157081,-5924.7707021,0.0001288,2]
[337165020,1725466157131,-6546.06901341,0.0001288,2]
[337165021,1725466157170,-504.97820725,0.0001288,2]
[337165025,1725466181559,-6818.01133809,0.0001288,2]
[337165026,1725466181625,-4531.24228872,0.0001288,2]
[337165027,1725466206533,-300.0,0.00012879,2]
[337165028,1725466206562,-6744.99641063,0.0001288,2]
[337165029,1725466206595,-4150.74019454,0.0001288,2]
[337165032,1725466231655,-438.58020339,0.0001288,2]
[337165033,1725466231711,-146476.25787848,0.0001288,2]
[337165034,1725466231764,-860.63137511,0.0001288,2]
[337165035,1725466231871,-8555.13457725,0.0001288,2]
[337165036,1725466231882,-4819.72288881,0.0001288,2]
[337165037,1725466231896,-3080.784,0.0001288,2]
[337165052,1725466237819,-48967.52124051,0.0001288,2]
[337165053,1725466238279,-373.6491406,0.0001288,2]
[337165054,1725466238295,-3501.66351016,0.0001288,2]
[337165055,1725466238306,-70203.0154065,0.0001288,2]
[337165056,1725466238318,-997.75091,0.0001288,2]
[337165057,1725466238358,-2538.4574776,0.0001288,2]
[337165058,1725466238370,-8480.67890624,0.0001288,2]
[337165059,1725466238383,-4937.46147797,0.0001288,2]
[337165060,1725466238416,-33495.01506612,0.0001288,2]
[337165064,1725466239779,-869.59654346,0.0001288,2]
[337165065,1725466239799,-501.04428,0.0001288,2]
[337165066,1725466239958,-950.90019971,0.0001288,2]
[337165067,1725466240012,-2907.9,0.0001288,2]
[337165068,1725466240024,-22194.97216554,0.0001288,2]
[337165069,1725466240226,-375.495108,0.0001288,2]
[337165185,1725466244048,-315.4550508,0.0001288,2]
[337165186,1725466244060,-634.91234935,0.0001288,2]
[337165187,1725466244069,-318.56,0.00012882,2]
[337165188,1725466244078,-2000.0,0.000129,2]
[337165189,1725466244087,-250.0,0.00013007,2]
[337165190,1725466244096,-4861.64,0.00013007,2]
[337165191,1725466244105,-6685.29753394,0.00013017,2]
[337165192,1725466244114,-221.72,0.00013094,2]
[337165193,1725466244122,-274.02,0.00013108,2]
[337165194,1725466244131,-6685.29753394,0.00013253,2]
[337165195,1725466244141,-330.01062212,0.00013388,2]
[337165196,1725466244150,-6685.29753394,0.00013488,2]
[337165197,1725466244162,-421.15547501,0.00013568,2]
[337165198,1725466244171,-169.79,0.00013699,2]
[337165199,1725466244180,-162.66,0.00013699,2]
[337165200,1725466244189,-500.0,0.00013699,2]
[337165201,1725466244198,-6685.29753394,0.00013723,2]
[337165202,1725466244207,-1541.59509,0.0001374,2]
[337165203,1725466244217,-500.0,0.00013769,2]
[337165204,1725466244226,-200.0,0.00013769,2]
[337165205,1725466244235,-2070.3642,0.0001377,2]
[337165206,1725466244244,-155.94268703,0.0001378,2]
[337165207,1725466244253,-200.69,0.0001379,2]
[337165208,1725466244262,-150.11638951,0.00013797,2]
[337165209,1725466244271,-178.57396135,0.000138,2]
[337165210,1725466244280,-1019676.79520586,0.000138,2]
[337165211,1725466244305,-55530.75213434,0.000138,2]
[337165212,1725466244316,-4997.04900018,0.000138,2]
[337165213,1725466244415,-40547.27840098,0.000138,2]
[337165214,1725466244426,-16511.19999,0.000138,2]
[337165215,1725466244456,-633.28339497,0.000138,2]
[337165216,1725466244475,-57347.46355909,0.000138,2]
[337165217,1725466244485,-31219.96060358,0.000138,2]
[337165218,1725466244494,-584.20458512,0.000138,2]
[337165219,1725466244503,-1754.8298588,0.000138,3]
[337165220,1725466245835,-2498.55947328,0.00013007,2]
[337165221,1725466245844,-412.38140261,0.00013467,2]
[337165222,1725466245854,-10147.427935,0.000138,3]
[337165223,1725466245890,-22536.5439,0.000138,3]
[337165224,1725466245902,-160286.2648762,0.000138,3]
[337165225,1725466245916,-1260.0,0.00013849,2]
[337165226,1725466245925,-1546.0,0.00013849,2]
[337165227,1725466245935,-451.077,0.00013849,2]
[337165228,1725466245944,-624.0,0.00013849,2]
[337165229,1725466246136,-557.0,0.00013849,2]
[337165230,1725466246159,-810.0,0.00013849,2]
[337165231,1725466246176,-150.0,0.00013849,2]
[337165232,1725466246186,-931.0,0.00013849,2]
[337165233,1725466246195,-1899.0,0.00013849,2]
[337165234,1725466246204,-552.0,0.00013849,2]
[337165235,1725466246214,-1134.0,0.00013849,2]
[337165236,1725466246228,-805.0,0.00013849,2]
[337165237,1725466246237,-3341.0,0.00013849,2]
[337165238,1725466246246,-248.0,0.00013849,2]
[337165239,1725466246255,-1922.0,0.00013849,2]
[337165240,1725466246264,-1144.0,0.00013849,2]
[337165241,1725466246274,-221.034,0.00013849,2]
[337165242,1725466246283,-3733.0,0.00013849,2]
[337165243,1725466246292,-5855.0,0.00013849,2]
[337165244,1725466246301,-13467.0,0.00013849,2]
[337165245,1725466246310,-1078.0,0.00013849,2]
[337165246,1725466246319,-185.60586849,0.00013879,2]
[337165247,1725466246329,-1000.0,0.0001388,2]
[337165248,1725466246338,-1000.0,0.0001388,2]
[337165249,1725466246347,-1000.0,0.0001388,2]
[337165250,1725466246356,-1000.0,0.0001388,2]
[337165251,1725466246366,-1000.0,0.0001388,2]
[337165252,1725466246375,-348.52160671,0.0001388,2]
[337165253,1725466246385,-1000.0,0.0001388,2]
[337165254,1725466246395,-1000.0,0.0001388,2]
[337165255,1725466246405,-1000.0,0.0001388,2]
[337165256,1725466246416,-1000.0,0.0001388,2]
[337165257,1725466246425,-1006.7126008,0.0001388,2]
[337165258,1725466246435,-150.00234412,0.0001388,2]
[337165259,1725466246444,-1000.0,0.0001388,2]
[337165260,1725466246453,-1000.0,0.0001388,2]
[337165261,1725466246463,-1000.0,0.0001388,2]
[337165262,1725466246472,-1000.0,0.0001388,2]
[337165263,1725466246481,-1000.0,0.0001388,2]
[337165264,1725466246490,-1000.0,0.0001388,2]
[337165265,1725466246500,-1000.0,0.0001388,2]
[337165266,1725466246509,-1000.0,0.0001388,2]
[337165267,1725466246518,-1000.0,0.0001388,2]
[337165268,1725466246527,-1000.0,0.0001388,2]
[337165269,1725466246536,-1000.0,0.0001388,2]
[337165270,1725466246547,-1000.0,0.0001388,2]
[337165271,1725466246558,-1000.0,0.0001388,2]
[337165272,1725466246567,-1000.0,0.0001388,2]
[337165273,1725466246576,-1000.0,0.0001388,2]
[337165274,1725466246586,-41260.6108,0.00013881,2]
[337165275,1725466246595,-9451.1584842,0.00013881,2]
[337165276,1725466246604,-3830.9816849,0.00013881,2]
[337165277,1725466246613,-5341.3795739,0.00013881,2]
[337165278,1725466246623,-629.92088066,0.00013899,5]
[337165279,1725466246631,-151.0,0.000139,2]
[337165280,1725466246640,-151.810004,0.000139,2]
[337165281,1725466246649,-151.0,0.000139,2]
[337165282,1725466246658,-151.0,0.000139,2]
[337165283,1725466246669,-151.0,0.000139,2]
[337165284,1725466246678,-275.770805,0.000139,2]
[337165285,1725466246687,-151.0,0.000139,2]
[337165286,1725466246696,-1000.0,0.000139,2]
[337165287,1725466246705,-3754.8218,0.000139,2]
[337165288,1725466246714,-126343.81732427,0.000139,3]
[337165289,1725466246730,-614.64999999,0.000139,3]
[337165290,1725466246742,-62132.424,0.000139,3]
[337165291,1725466246765,-792.90746223,0.000139,3]
[337165292,1725466246794,-8596.22164451,0.000139,3]
[337165293,1725466246804,-226.0,0.000139,2]
[337165294,1725466246814,-1928.537,0.000139,2]
[337165295,1725466246825,-358.0,0.000139,2]
[337165296,1725466246837,-3052.6257,0.000139,2]
[337165297,1725466246849,-151.0,0.000139,2]
[337165298,1725466246859,-259.29706271,0.000139,2]
[337165299,1725466246869,-152.890725,0.000139,2]
[337165300,1725466246879,-151.0,0.000139,2]
[337165301,1725466246888,-159.83719,0.000139,2]
[337165302,1725466246898,-151.0,0.000139,2]
[337165303,1725466246907,-151.0,0.000139,2]
[337165304,1725466246922,-151.0,0.000139,2]
[337165305,1725466246932,-6685.29753394,0.00013959,2]
[337165306,1725466246942,-279.442829,0.00013973,2]
[337165307,1725466246952,-500.0,0.00013973,2]
[337165308,1725466246962,-154.0,0.00013987,2]
[337165309,1725466246972,-18477.85031499,0.00014,2]
[337165310,1725466256161,-150.0,0.0001278,2]
[337165311,1725466256645,-150.0,0.0001278,2]
[337165312,1725466257108,-150.0,0.0001278,2]
[337165313,1725466257616,-150.0,0.0001278,2]
[337165314,1725466258536,-150.0,0.0001278,2]
[337165320,1725466464827,2000.0,0.000185,90]
[337165321,1725466548419,150.0,0.00011198,2]
[337165322,1725466548440,150.0,0.00011198,2]
[337165323,1725466548461,107.36,0.00011198,2]
[337165324,1725466718956,150.0,0.00010959,2]
[337165325,1725466718981,43.24,0.00010959,2]
[337165328,1725467115391,299.68244565,0.000121,30]
[337165329,1725467116049,150.0,0.00011089,2]
[337165330,1725467116072,150.0,0.00011089,2]
[337165331,1725467116097,86.99,0.00011089,2]
[337165333,1725467174367,692.96901585,0.00025,120]
[337165334,1725467282437,150.0,0.0001,2]
[337165335,1725467282458,150.0,0.0001,2]
[337165336,1725467282478,150.0,0.0001,2]
[337165337,1725467282499,2.40450032,0.0001,2]
[337165338,1725467285568,150.0,0.00010999,2]
[337165339,1725467285590,34.12540866,0.00010999,2]
[337165340,1725467292711,150.0,0.00011,2]
[337165341,1725467292732,150.0,0.00011,2]
[337165342,1725467292753,150.0,0.00011,2]
[337165343,1725467292773,100.0,0.00011,2]
[337165345,1725467323473,-200.0,0.00012545,2]
[337165346,1725467323502,-6315.33412999,0.00012557,2]
[337165349,1725467323624,-1767.00055846,0.00012557,2]
[337165352,1725467348587,-171.917184,0.00012533,2]
[337165353,1725467348618,-1402.43593534,0.00012557,2]
[337165356,1725467348770,-6194.80937621,0.00012557,2]
[337165357,1725467348798,-250.0,0.00012586,2]
[337165358,1725467348826,-150.0,0.00012633,2]
[337165359,1725467348854,-86.17144755,0.00012655,2]
[337165362,1725467373422,-150.1,0.00012509,2]
[337165363,1725467373453,-292.26855245,0.00012655,2]
[337165364,1725467373484,-250.0,0.00012712,2]
[337165365,1725467373517,-5211.79088354,0.00012712,2]
[337165366,1725467373548,-150.0,0.00012718,2]
[337165367,1725467373581,-791.92806663,0.00012729,2]
[337165370,1725467373657,-708.07193337,0.00012729,2]
[337165371,1725467373689,-4196.51,0.00012766,2]
[337165372,1725467373720,-287.01039229,0.00012766,2]
[337165373,1725467398350,-212.97960771,0.00012766,2]
[337165374,1725467398379,-707.76,0.00012768,2]
[337165375,1725467398408,-124.0607,0.0001278,2]
[337165376,1725467398441,-150.99,0.0001278,2]
[337165378,1725467398467,-358.32,0.0001278,2]
[337165379,1725467398494,-4506.43,0.00012791,2]
[337165380,1725467398524,-1026.30079148,0.00012791,2]
[337165381,1725467398555,-2145.24145277,0.00012791,2]
[337165384,1725467419745,150.0,0.00010959,2]
[337165385,1725467419766,149.0,0.00010959,2]
[337165394,1725467431873,-32895.29775575,0.00012791,2]
[337165395,1725467431882,-1231.36,0.00012791,2]
[337165396,1725467431892,-151.99,0.00012989,2]
[337165397,1725467431901,-600.0,0.00013,2]
[337165398,1725467431910,-1200.0,0.00013004,2]
[337165399,1725467431920,-169.22,0.00013007,2]
[337165400,1725467431929,-200.0,0.00013007,2]
[337165401,1725467431938,-1683.89,0.00013007,2]
[337165402,1725467431947,-250.0,0.00013007,2]
[337165403,1725467431960,-177.37,0.00013007,2]
[337165404,1725467431969,-1000.0,0.00013007,2]
[337165405,1725467431979,-1231.86699603,0.00013198,2]
[337165406,1725467431989,-386.99,0.00013353,2]
[337165407,1725467431998,-150.0,0.00013488,2]
[337165408,1725467432007,-150.0,0.00013488,2]
[337165409,1725467432018,-150.0,0.00013488,2]
[337165410,1725467432027,-150.0,0.00013488,2]
[337165411,1725467432036,-150.0,0.00013613,2]
[337165412,1725467432045,-192.25,0.00013657,2]
[337165413,1725467432054,-162.66,0.00013699,2]
[337165414,1725467432063,-500.0,0.00013699,2]
[337165415,1725467432072,-200.0,0.00013699,2]
[337165416,1725467432082,-150.0,0.00013737,2]
[337165417,1725467432091,-421.15547501,0.00013768,2]
[337165418,1725467432101,-500.0,0.00013829,2]
[337165419,1725467432110,-200.0,0.00013829,2]
[337165420,1725467432120,-4644.06375209,0.0001386,2]
[337165421,1725467432129,-150.0,0.00013862,2]
[337165422,1725467432139,-150.0,0.00013862,2]
[337165423,1725467432148,-330.0106221,0.00013892,2]
[337165424,1725467432157,-191.94175387,0.000139,2]
[337165425,1725467432166,-1000.0,0.000139,2]
[337165426,1725467432176,-226.0,0.000139,2]
[337165427,1725467432185,-358.0,0.000139,2]
[337165428,1725467432196,-221.61260684,0.000139,2]
[337165429,1725467432213,-250.0,0.000139,2]
[337165430,1725467432222,-250.0,0.000139,2]
[337165431,1725467432231,-250.0,0.000139,2]
[337165432,1725467432241,-250.0,0.000139,2]
[337165433,1725467432250,-453.6,0.000139,2]
[337165434,1725467432260,-810.0,0.00013961,2]
[337165435,1725467432269,-557.0,0.00013961,2]
[337165436,1725467432280,-931.0,0.00013961,2]
[337165437,1725467432289,-150.0,0.00013961,2]
[337165438,1725467432299,-1899.0,0.00013961,2]
[337165439,1725467432307,-552.0,0.00013961,2]
[337165440,1725467432317,-1134.0,0.00013961,2]
[337165441,1725467432327,-1922.0,0.00013961,2]
[337165442,1725467432336,-248.0,0.00013961,2]
[337165443,1725467432346,-3341.0,0.00013961,2]
[337165444,1725467432355,-805.0,0.00013961,2]
[337165445,1725467432363,-1078.0,0.00013961,2]
[337165446,1725467432372,-447.0,0.00013961,2]
[337165447,1725467432381,-624.0,0.00013961,2]
[337165448,1725467432391,-289.0,0.00013961,2]
[337165449,1725467432399,-3733.0,0.00013961,2]
[337165451,1725467432408,-1260.0,0.00013961,2]
[337165453,1725467432418,-1546.0,0.00013961,2]
[337165455,1725467432427,-251.498546,0.00013973,2]
[337165457,1725467432436,-150.0,0.00013987,2]
[337165459,1725467432445,-150.74,0.00013989,2]
[337165461,1725467432460,-386.78227157,0.00013989,2]
[337165463,1725467432469,-157417.55827412,0.0001399,3]
[337165465,1725467432482,-32123.09793523,0.0001399,3]
[337165468,1725467432493,-620.41836,0.0001399,3]
[337165470,1725467432508,-279.92831739,0.0001399,3]
[337165472,1725467432519,-2437.99633404,0.0001399,3]
[337165475,1725467432533,-3603.53690901,0.0001399,3]
[337165477,1725467432545,-2497.50370162,0.0001399,3]
[337165479,1725467432556,-1181.26213134,0.0001399,3]
[337165481,1725467432567,-1474.18482912,0.0001399,3]
[337165484,1725467432578,-1224.92496,0.0001399,3]
[337165487,1725467432600,-4500.77126725,0.0001399,3]
[337165489,1725467432612,-23815.42137488,0.0001399,3]
[337165491,1725467432621,-67151.4039061,0.0001399,3]
[337165493,1725467432630,-2582.74630408,0.00013991,3]